Cogmind - Beta 11 @@@ ROGUE MODE // 2022.03.28 @ 18:59:55 Player: El Diablo Result: Destroyed by G-47 Trooper with Particle Gun Performance ------------- Evolutions (2) 1000 Regions Visited (5) 1000 Robots Destroyed (15) 75 Value Destroyed (424) 424 Prototype IDs (0) 0 Alien Tech Used (0) 0 Bonus (0) 0 TOTAL SCORE: 2499 Bonus ------- None Cogmind --------- Core Integrity 0/550 Matter 253/300 Energy 100/100 System Corruption 0% Temperature Cool (18) Movement Core (200) Ox3 Location -8/Materials Parts ------- > --- POWER (2) -------- (None) > --- PROPULSION (2) --- (None) > --- UTILITY (4) ------ Medium Storage Unit ECM Suite > --- WEAPON (3) ------- (None) > --- INVENTORY (10) --- Improved Ion Engine Fission Core Light Fission Core Aluminum Leg Aluminum Leg Improved Terrain Scanner Minigun Datajack Plasma Cutter Peak State ------------ > --- POWER ------------ Light Ion Engine > --- PROPULSION ------- Carbon-fiber Leg Titanium Leg > --- UTILITY ---------- Medium Storage Unit Seismic Detector ECM Suite Light Armor Plating > --- WEAPON ----------- EM Pulse Gun Light EM Pulse Cannon Grenade Launcher > --- INVENTORY -------- Fission Core Light Fission Core Aluminum Leg Aluminum Leg Improved Terrain Scanner Minigun Datajack Plasma Cutter [Rating: 17] Favorites ----------- Power Light Ion Engine Engine Light Ion Engine Power Core Light Nuclear Core Propulsion Aluminum Leg Leg Aluminum Leg Utility Seismic Detector Device Seismic Detector Storage Medium Storage Unit Protection Light Armor Plating Weapon EM Pulse Gun Energy Gun EM Pulse Gun Energy Cannon Light EM Pulse Cannon Launcher Grenade Launcher Special Weapon Plasma Cutter Build | -11 -10 -10 -10 -9 -8 ------- Run | Scr Mat Min Exi Min Mat Slots Evolved 4 | . . . . . 4 Power 1 | . . . . . 1 Propulsion . | . . . . . . Utility 2 | . . . . . 2 Weapon 1 | . . . . . 1 Parts Attached 24 | 7 7 . 2 2 6 Power 4 | 1 1 . . 2 . Engine 3 | 1 1 . . 1 . Core 1 | . . . . 1 . Reactor . | . . . . . . Propulsion 7 | 2 2 . 1 . 2 Treads . | . . . . . . Leg 7 | 2 2 . 1 . 2 Wheel . | . . . . . . Hover . | . . . . . . Flight . | . . . . . . Utility 8 | 2 3 . 1 . 2 Device 5 | 1 3 . . . 1 Storage 2 | 1 . . 1 . . Processor . | . . . . . . Hackware . | . . . . . . Protection 1 | . . . . . 1 Artifact . | . . . . . . Weapon 5 | 2 1 . . . 2 Energy Gun 2 | 2 . . . . . Energy Cannon 1 | . . . . . 1 Ballistic Gun . | . . . . . . Ballistic Cannon . | . . . . . . Launcher 1 | . . . . . 1 Special Weapon 1 | . 1 . . . . Impact Weapon . | . . . . . . Slashing Weapon . | . . . . . . Piercing Weapon . | . . . . . . Special Melee Weapon . | . . . . . . Unidentified Prototypes . | . . . . . . Parts Lost 13 | . 3 . . 2 8 Power 4 | . 1 . . 2 1 Propulsion 2 | . . . . . 2 Utility 3 | . 1 . . . 2 Weapon 4 | . 1 . . . 3 Highest Loss Streak 8 | . 2 . . 2 8 To Critical Strikes . | . . . . . . Average Slot Usage (%) 94 | . 94 100 100 98 70 Engine 12 | . 11 14 14 12 6 Leg 26 | . 28 28 28 28 14 Device 13 | . 11 14 14 14 15 Storage 13 | . 14 14 14 14 9 Energy Gun 16 | . 26 14 14 14 5 Special Weapon 8 | . . 14 14 14 . Naked Turns . | . . . . . . Heaviest Build 28 | 13 14 12 17 19 28 Greatest Support 32 | 20 20 20 20 20 32 Greatest Overweight (x) 3 | 1 . . . . 3 Average Overweight (x) . | . . . . . . Largest Inventory Capacity 10 | 8 8 8 10 10 10 Average Capacity 9 | 7 8 8 9 10 10 Most Carried 9 | 5 8 8 8 9 9 Average Carried 7 | 2 6 8 7 7 7 Final Capacity 10 | 8 8 8 10 10 10 Final Carried 9 | 4 8 8 8 9 9 Class Distribution -------------------- 93% | Mutant 6% | Tank Dominant Class ---------------- Mutant | -10/Materials Mutant | -10/Mines Mutant | -10/Exiles Mutant | -9/Mines Tank | -8/Materials Resources | -11 -10 -10 -10 -9 -8 ----------- Run | Scr Mat Min Exi Min Mat Matter Collected 373 | 270 60 10 . 30 3 Remotely 147 | 137 10 . . . . Salvage Created 616 | 130 240 . . 190 56 Parts 42 | 7 16 . . 14 5 Haulers Intercepted . | . . . . . . Recyclers Shooed 1 | . . . . 1 . Parts Field Recycled . | . . . . . . Retrieved Matter . | . . . . . . Parts Self-Destructed . | . . . . . . Prevented . | . . . . . . Kills | -11 -10 -10 -10 -9 -8 ------- Run | Scr Mat Min Exi Min Mat Combat Hostiles Destroyed 9 | . 5 . . 3 1 Guns 5 | . 4 . . 1 . AOE 2 | . . . . 1 1 Classes Destroyed 7 | 2 2 . . 2 1 Worker 1 | . . . . 1 . Builder 1 | . . . . 1 . Tunneler 1 | 1 . . . . . Recycler 1 | 1 . . . . . Operator 2 | . 1 . . . 1 Grunt 8 | . 5 . . 3 . Sentry 1 | . . . . . 1 Best Kill Streak 5 | 1 2 . . 5 1 Combat Bots Only 3 | . 2 . . 3 1 Max Kills in Single Turn 1 | 1 1 . . 1 1 Gunslinging . | . . . . . . Exploded 1 | . . . . 1 1 Melee . | . . . . . . Uniques/NPCs Destroyed . | . . . . . . Combat | -11 -10 -10 -10 -9 -8 -------- Run | Scr Mat Min Exi Min Mat Damage Taken 1869 | . 381 . . 256 1232 Core 642 | . 23 . . 63 556 Absorbed by Shields . | . . . . . . Core Remaining (%) 82 | 100 . . . 65 . Volleys Fired 47 | 3 24 1 . 15 4 Largest 3 | 2 2 2 . 2 3 Hottest 126 | 90 90 60 . 60 126 Shots Fired 78 | 6 40 2 . 22 8 Gun 63 | 6 40 1 . 15 1 Cannon 4 | . . . . . 4 Launcher 3 | . . . . . 3 Special 8 | . . 1 . 7 . Kinetic . | . . . . . . Thermal 27 | 3 16 1 . 7 . Explosive 3 | . . . . . 3 Electromagnetic 48 | 3 24 1 . 15 5 Robot Hit Streak 14 | 3 7 . . 14 4 Robot Miss Streak 3 | 1 3 2 . 1 1 Penetration Max . | . . . . . . Secondary Targets . | . . . . . . Shots Hit Robots 55 | 4 28 . . 18 5 Core Hits 24 | 3 11 . . 6 4 Critical Kills . | . . . . . . Critical Parts Destroyed . | . . . . . . Critical Strikes 2 | . 2 . . . . Burn 1 | . 1 . . . . Corrupt 1 | . 1 . . . . Melee Attacks . | . . . . . . Impact . | . . . . . . Slashing . | . . . . . . Piercing . | . . . . . . Sneak Attacks . | . . . . . . Combat Hostiles . | . . . . . . Follow-up Attacks . | . . . . . . Damage Inflicted 801 | 49 358 . . 276 118 Guns 598 | 49 358 . . 191 . Cannons 64 | . . . . . 64 Explosions 95 | . . . . 41 54 Melee . | . . . . . . Ramming . | . . . . . . Kinetic . | . . . . . . Thermal 235 | 24 126 . . 85 . Explosive 54 | . . . . . 54 Electromagnetic 512 | 25 232 . . 191 64 Impact . | . . . . . . Slashing . | . . . . . . Piercing . | . . . . . . Highest Corruption . | . . . . . . Average Corruption . | . . . . . . Corruption Purged . | . . . . . . Corruption Blocked . | . . . . . . Overload Shots . | . . . . . . Overflow Damage 1 | . . . . . 1 Projectiles . | . . . . . . Explosions 1 | . . . . . 1 Melee . | . . . . . . Knockbacks . | . . . . . . Impact . | . . . . . . Kinetic . | . . . . . . Secondary . | . . . . . . Self-Inflicted Damage 123 | . . . . 23 100 Shots 4 | . . . . 1 3 Rammed . | . . . . . . Targets Rammed . | . . . . . . Kicked . | . . . . . . Crushed . | . . . . . . Highest Temperature 210 | 60 210 . . 18 57 Average Temperature 62 | 26 84 . . 6 19 Received Heat Transfer 915 | . 123 . . 126 666 Siege Activations . | . . . . . . Robots Corrupted 2 | . 1 . . 1 . Combat Hostiles 2 | . 1 . . 1 . Parts Fried 2 | . . . . 1 1 Impact Corruptions . | . . . . . . Robots Melted . | . . . . . . Combat Hostiles . | . . . . . . Parts Melted 1 | . 1 . . . . Heat Transferred 716 | 74 444 . . 198 . Parts Sabotaged . | . . . . . . Parts Stolen . | . . . . . . Parts Stripped . | . . . . . . Power Chain Reactions 1 | . . . . 1 . Missiles Intercepted . | . . . . . . Alert | -11 -10 -10 -10 -9 -8 ------- Run | Scr Mat Min Exi Min Mat Peak Influence 102 | 10 75 28 . 102 93 Initial 28 | . 6 28 . . . Average 37 | 3 26 28 . 63 37 Maximum Alert Level . | . . . . . . Low Security (%) 100 | 100 100 100 . 100 100 Level 1 . | . . . . . . Level 2 . | . . . . . . Level 3 . | . . . . . . Level 4 . | . . . . . . Level 5 . | . . . . . . High Security . | . . . . . . Max Security . | . . . . . . Squads Dispatched 6 | . 2 . . . 4 Investigation 1 | . . . . . 1 Extermination . | . . . . . . Reinforcement 5 | . 2 . . . 3 Assault . | . . . . . . Garrison . | . . . . . . Intercept . | . . . . . . Searches Triggered . | . . . . . . Construction Impeded 1 | . . . . . 1 Haulers Reinforced . | . . . . . . Active Scanning Responses . | . . . . . . Cargo Convoy Interrupts . | . . . . . . Stealth | -11 -10 -10 -10 -9 -8 --------- Run | Scr Mat Min Exi Min Mat Distress Signals 2 | . 1 . . . 1 Communications Jammed . | . . . . . . Distress Signals . | . . . . . . Times Spotted 26 | . 7 . . 4 15 Peak Tracking Total 11 | . 2 . . 3 11 Tactical Retreats 1 | . . . . 1 . Traps | -11 -10 -10 -10 -9 -8 ------- Run | Scr Mat Min Exi Min Mat Traps Triggered 2 | . 2 . . . . Indirectly . | . . . . . . Trap Hack Attempts . | . . . . . . Triggered . | . . . . . . Disarmed . | . . . . . . Reprogrammed . | . . . . . . Reused . | . . . . . . Traps Extracted . | . . . . . . Installed . | . . . . . . Triggered . | . . . . . . Machines | -11 -10 -10 -10 -9 -8 ---------- Run | Scr Mat Min Exi Min Mat Machines Disabled 3 | . . . . . 3 Max in Single Turn 1 | . . . . . 1 Machines Sabotaged . | . . . . . . Garrisons Compromised . | . . . . . . Overloaded Fab Kills . | . . . . . . Hacking | -11 -10 -10 -10 -9 -8 --------- Run | Scr Mat Min Exi Min Mat Machines Accessed 5 | . 1 . 3 . 1 Terminals 1 | . . . . . 1 Fabricators . | . . . . . . Repair Stations 1 | . 1 . . . . Recycling Units . | . . . . . . Scanalyzers . | . . . . . . Garrison Access . | . . . . . . Total Hacks 43 | . 1 . 39 . 3 Successful 40 | . 1 . 39 . . Failed 3 | . . . . . 3 Catastrophic . | . . . . . . Database Lockouts . | . . . . . . Manual . | . . . . . . Terminals 3 | . . . . . 3 Fabricators . | . . . . . . Repair Stations 1 | . 1 . . . . Recycling Units . | . . . . . . Scanalyzers . | . . . . . . Garrison Access . | . . . . . . Terminal Hacks 39 | . . . 39 . . Record 39 | . . . 39 . . Fabricator Hacks . | . . . . . . Repair Station Hacks 1 | . 1 . . . . Scan Component 1 | . 1 . . . . Recycling Unit Hacks . | . . . . . . Scanalyzer . | . . . . . . Garrison Access Hacks . | . . . . . . Unauthorized Hacks . | . . . . . . Terminals . | . . . . . . Fabricators . | . . . . . . Repair Stations . | . . . . . . Recycling Units . | . . . . . . Scanalyzers . | . . . . . . Garrison Access . | . . . . . . Data Cores Recovered . | . . . . . . Used . | . . . . . . Hacking Detections 1 | . . . . . 1 Full Trace Events 1 | . . . . . 1 Feedback Events . | . . . . . . Feedback Blocked . | . . . . . . Robot Schematics Acquired . | . . . . . . Robots Built . | . . . . . . Authchips . | . . . . . . Time . | . . . . . . Total Robot Build Rating . | . . . . . . Part Schematics Acquired . | . . . . . . Parts Built . | . . . . . . Authchips . | . . . . . . Time . | . . . . . . Total Part Build Rating . | . . . . . . Parts Repaired . | . . . . . . Time . | . . . . . . Parts Recycled . | . . . . . . Recycled Matter . | . . . . . . Retrieved Matter . | . . . . . . Retrieved Components . | . . . . . . Parts Scanalyzed . | . . . . . . Part Schematics Acquired . | . . . . . . Parts Damaged . | . . . . . . Bothacking | -11 -10 -10 -10 -9 -8 ------------ Run | Scr Mat Min Exi Min Mat Used RIF Installer . | . . . . . . Robots Hacked . | . . . . . . Non-combat . | . . . . . . Combat . | . . . . . . Robot Hacks Applied . | . . . . . . Relay Couplers Released . | . . . . . . Fabnet Peak Effective % . | . . . . . . Robots Rewired . | . . . . . . Allies Hacked . | . . . . . . Hacks Repelled . | . . . . . . Allies | -11 -10 -10 -10 -9 -8 -------- Run | Scr Mat Min Exi Min Mat Total Allies . | . . . . . . Largest Group . | . . . . . . Highest-Rated Group . | . . . . . . Highest-Rated Ally . | . . . . . . Total Orders . | . . . . . . Ally Attacks . | . . . . . . Total Damage . | . . . . . . Kills . | . . . . . . Allies Corrupted . | . . . . . . Allies Melted . | . . . . . . Intel | -11 -10 -10 -10 -9 -8 ------- Run | Scr Mat Min Exi Min Mat Robot Analysis Total . | . . . . . . Derelict Logs Recovered 2 | . . 1 . 1 . Drone Launches . | . . . . . . Drone Recoveries . | . . . . . . Exploration | -11 -10 -10 -10 -9 -8 ------------- Run | Scr Mat Min Exi Min Mat Turns Passed 2396 | 64 685 117 840 435 255 Spaces Moved 1576 | 42 372 82 684 272 124 Core 35 | 18 . . . . 17 Treads . | . . . . . . Legs 1541 | 24 372 82 684 272 107 Wheels . | . . . . . . Hover . | . . . . . . Flight . | . . . . . . Fastest Speed 50 | 50 120 120 120 120 125 Average Speed 121 | 93 120 120 120 120 142 Slowest Speed 200 | 120 120 120 120 120 200 Overloaded Moves . | . . . . . . Propulsion Burnouts . | . . . . . . Robots Hopped . | . . . . . . Cave-ins Triggered . | . . . . . . Exploration Rate (%) 41 | 3 54 25 92 58 17 Regions Visited 5 Branch Regions 3 Pre-discovered Areas 1 | . . . 1 . . Known Exits Taken . | . . . . . . Unknown Exits Taken 5 | 1 1 1 1 1 . Scrap Searched 1 | . . . . 1 . Spaces Dug . | . . . . . . Terrain Destroyed 17 | . . . . 4 13 Melee . | . . . . . . Projectile . | . . . . . . AOE 17 | . . . . 4 13 Terrain Rammed . | . . . . . . Walls Destroyed . | . . . . . . Machines Disabled . | . . . . . . Actions | -11 -10 -10 -10 -9 -8 --------- Run | Scr Mat Min Exi Min Mat Total 1981 | 59 573 97 705 351 196 Wait 298 | . 154 15 13 60 56 Move 1571 | 41 371 81 683 271 124 Hop . | . . . . . . Pick Up 29 | 8 11 . 3 3 4 Fast Attach 4 | 3 1 . . . . Attach 18 | 4 6 . 1 2 5 Detach 2 | . 1 . . . 1 Swap 2 | . . . 1 . 1 Drop 10 | . 5 . 4 . 1 Fire 47 | 3 24 1 . 15 4 Melee . | . . . . . . Ram . | . . . . . . Kick . | . . . . . . Crush . | . . . . . . Escape Stasis . | . . . . . . Rewire . | . . . . . . Trap . | . . . . . . Miscellaneous . | . . . . . . Route ------- -11/Scrapyard -10/Materials (discovered 3 exits: [*Mat] / [*Min x2]) -10/Mines (discovered 3 exits: [*Mat x2] / *Exi) -10/Exiles (discovered 2 exits: [*Min x2]) -9/Mines -8/Materials (discovered 3 exits: *Fac x2 / Sto) History --------- Turn | Location | Event 8 | -11/Scrapyard | Discovered new exit (range 16) 65 | -11/Scrapyard | Entered Materials 73 | -10/Materials | Discovered new exit (range 12) 169 | -10/Materials | Discovered new exit (range 7) 170 | -10/Materials | Met 8R-AWN 283 | -10/Materials | Discovered new exit (range 12) 314 | -10/Materials | Build established: Mutant 750 | -10/Materials | Entered Mines 751 | -10/Mines | Followed 8R-AWN into the Mines 775 | -10/Mines | Discovered new exit (range 9) 826 | -10/Mines | Discovered new exit (range 12) 861 | -10/Mines | Discovered new exit (range 5) 867 | -10/Mines | Entered Exiles 909 | -10/Exiles | Welcomed by 8R-AWN 942 | -10/Exiles | Met EX-HEX 1026 | -10/Exiles | Met EX-DEC 1066 | -10/Exiles | Learned location of Zion (-7) 1134 | -10/Exiles | Discovered new exit (range 15) 1213 | -10/Exiles | Met EX-BIN 1365 | -10/Exiles | Learned about 8R-AWN's background 1397 | -10/Exiles | Discovered new exit (range 15) 1517 | -10/Exiles | Visited The Gauntlet 1707 | -10/Exiles | Entered Mines 2037 | -9/Mines | Learned location of 2 exits from Materials 2082 | -9/Mines | Discovered new exit (range 4) 2095 | -9/Mines | YI-UF0 nonchalantly dropped a Grenade Launcher on the ground 2142 | -9/Mines | Entered Materials 2142 | -8/Materials | Evolved 4 slots: Power x1, Utility x2, Weapon x1 2143 | -8/Materials | Identified exit to Storage 2144 | -8/Materials | Identified exit to Factory 2368 | -8/Materials | Core integrity fell below 50% 2394 | -8/Materials | Lost 8 parts (1p2n2u3w) 2394 | -8/Materials | Core integrity fell below 20% 2397 | -8/Materials | Destroyed by G-47 Trooper with Particle Gun Last Messages --------------- R-06 Scavenger inserts Lgt. Ion Engine into recycling unit. U-05 Engineer lays Concrete. R-06 Scavenger inserts Lgt. Armor Plating into recycling unit. U-05 Engineer lays Concrete. U-05 Engineer builds a Door. U-05 Engineer lays Concrete. U-05 Engineer builds a Wall. R-06 Scavenger inserts Hvy. Assault Rifle into recycling unit. The unstable cave ceiling collapses. Wheel crushed. U-05 Engineer lays Concrete. Lgt. EM Pulse Cannon destroyed. Critical hit (Burn: +37). U-05 Engineer lays Concrete. R-06 Scavenger inserts Wheel into recycling unit. U-05 Engineer lays Concrete. U-05 Engineer builds a Wall. U-05 Engineer lays Concrete. Titanium Leg destroyed. Critical hit (Burn: +37). Map ----- +----------------------------------------------------+ | | | | | | | ??????????????????????????????????? | | ??????????????????????????????????? | | ??????????????????????????????????? | | ??????????????????????????????????? | | ??????????????????????????????????? | | ??????????????????????????????????? | | ??????????????????????????????????? | | ??????????????????????????????????? | | ??????????????????????????????????? | | ??????????????????????????????????? | | ??????????????????????????????????? | | ??????????????????????????????????? | | ??????????????????????????????????? | | ??????????????????????????????????? | | ??????????????????????????????????? | | ??????????????????????????????? ?? | | ????????????????????????#####??"" ? | | ????????????????????????# #?""" # | | ????????????????????????# < # """ ? | | ????????????????????????# # ??? | | ????????????????????????# g/ ????? | | ????????????????????????# g#?????? | | ????????????????????????#@ g#?????? | | ????????????????????????# #?????? | | ????????????????????????# #?????? | | ????????????????????????# #?????? | | ????????????????????????# #?????? | | ????????????????????????# #?????? | | ????????????????????????# #?????? | | ????????????????????????#g #?????? | | ???????????????????????##ggg##????? | | ######+################# #????? | | g #????? | | T #????? | | #????? | | ??# #######/########## #????? | | ?????????# #????###+###????? | | ?????????# "" """ #???????????????? | | ?????????# "Y """ #???????????????? | | ?????????# "" """ ##??????????????? | | ?????????# #??????????????? | | ?????????# " " ##??????????????? | | ?????????# " #??????????????? | | ?????????#! ! ##??????????????? | | ?????????# #???????????????? | | ?????????##+##/# #???????????#???? | | ??????????# %## #?????????? #???? | +----------------------------------------------------+ Best States ------------- Heat Dissipation 31 Energy Generation 14 Energy Capacity 160 Matter Stores 300 Matter Capacity 300 Sight Range 16 Terrain Scan Density 10 ECM Strength 1 Armor Coverage 150 Evasion (%) 55 Item Schematics ----------------- None Robot Schematics ------------------ None Fabricated ------------ Nothing Alien Tech Used ----------------- None Achievements -------------- Power Corrupts Use The Force Challenges ------------ None Game ------ Seed BombardmentStealthKit Manual? 0 Play Time 00:21:48 Cumulative 13.3 hours Start 2022.03.28 @ 18:31:07 End 2022.03.28 @ 18:59:55 Sessions 1 Manual Loads 0 Difficulty Rogue Special Mode None Game No. 13 Rogue 5 Adventurer 8 Explorer 0 Win Type - Total 0 Types 0/0/0/0/0/0/0/0/0 Lore% 13 Gallery% 17 Achievement% 16 Wizard Run 0 Options --------- ASCII 0 Keyboard 0 Movement Mouse Keybinds 0 Fullscreen 0 Font 32/SmallcapsGlow Map View 76x50 Tactical HUD 0 Map Filters NONE Filters NONE Steam 1 RUN: aea2225a-9282-41ec-9270-0c5cc7fa147f